fUSD/lending_fUSD_20250403
["ID","MTS","AMOUNT","RATE_DAILY","PERIOD"]
[357056985,1743663078431,-666.19783207,0.00049999,120]
[357056986,1743663078471,-666.19783207,0.00049999,120]
[357056987,1743663078513,-666.19783207,0.00049999,120]
[357056988,1743663078552,-666.19783207,0.00049999,120]
[357056989,1743663078592,-666.19783207,0.00049999,120]
[357056990,1743663078630,-666.19783207,0.00049999,120]
[357056991,1743663078668,-666.19783207,0.00049999,120]
[357056992,1743663078708,-666.19783207,0.00049999,120]
[357056993,1743663078747,-666.19783207,0.00049999,120]
[357056994,1743663078787,-666.19783207,0.00049999,120]
[357056995,1743663078827,-666.19783207,0.00049999,120]
[357056996,1743663078866,-666.19783207,0.00049999,120]
[357056997,1743663079058,-666.19783207,0.00049999,120]
[357056998,1743663079103,-666.19783207,0.00049999,120]
[357056999,1743663079147,-666.19783207,0.00049999,120]
[357057000,1743663079192,-666.19783207,0.00049999,120]
[357057001,1743663079233,-666.19783207,0.00049999,120]
[357057002,1743663079275,-666.19783207,0.00049999,120]
[357057003,1743663079316,-666.19783207,0.00049999,120]
[357057004,1743663079357,-666.19783207,0.00049999,120]
[357057005,1743663079400,-666.19783207,0.00049999,120]
[357057006,1743663079441,-666.19783207,0.00049999,120]
[357057007,1743663079485,-666.19783207,0.00049999,120]
[357057008,1743663079526,-666.19783207,0.00049999,120]
[357057009,1743663079566,-666.19783207,0.00049999,120]
[357057010,1743663079606,-666.19783207,0.00049999,120]
[357057011,1743663079644,-666.19783207,0.00049999,120]
[357057012,1743663079683,-666.19783207,0.00049999,120]
[357057013,1743663079721,-666.19783207,0.00049999,120]
[357057014,1743663079760,-666.19783207,0.00049999,120]
[357057015,1743663079800,-666.19783207,0.00049999,120]
[357057016,1743663079838,-666.19783207,0.00049999,120]
[357057017,1743663079878,-666.19783207,0.00049999,120]
[357057018,1743663079916,-666.19783207,0.00049999,120]
[357057019,1743663079955,-666.19783207,0.00049999,120]
[357057020,1743663079998,-500.0,0.00049999,120]
[357057021,1743663080043,-666.19783207,0.00049999,120]
[357057022,1743663080087,-666.19783207,0.00049999,120]
[357057023,1743663080132,-497.71654137,0.00049999,120]
[357057024,1743663080173,-666.19783207,0.00049999,120]
[357057025,1743663080216,-666.19783207,0.00049999,120]
[357057026,1743663080261,-666.19783207,0.00049999,120]
[357057027,1743663080308,-599.02686784,0.00049999,120]
[357057028,1743663080350,-666.19783207,0.00049999,120]
[357057029,1743663080391,-666.19783207,0.00049999,120]
[357057030,1743663080435,-666.19783207,0.00049999,120]
[357057031,1743663080476,-666.19783207,0.00049999,120]
[357057032,1743663080517,-666.19783207,0.00049999,120]
[357057033,1743663080559,-641.01039144,0.00049999,120]
[357057034,1743663080604,-599.02686784,0.00049999,120]
[357057035,1743663080651,-500.0,0.00049999,120]
[357057036,1743663080695,-599.02686784,0.00049999,120]
[357057037,1743663080740,-641.01039144,0.00049999,120]
[357057038,1743663080784,-641.01039144,0.00049999,120]
[357057039,1743663080825,-599.02686784,0.00049999,120]
[357057040,1743663080865,-641.01039144,0.00049999,120]
[357057041,1743663080907,-599.02686784,0.00049999,120]
[357057042,1743663080951,-641.01039144,0.00049999,120]
[357057043,1743663080996,-500.0,0.00049999,120]
[357057044,1743663081039,-641.01039144,0.00049999,120]
[357057045,1743663081085,-599.02686784,0.00049999,120]
[357057046,1743663081128,-641.01039144,0.00049999,120]
[357057047,1743663081172,-599.02686784,0.00049999,120]
[357057048,1743663081218,-599.02686784,0.00049999,120]
[357057049,1743663081263,-2594.3647003,0.00049999,120]
[357057050,1743663081306,-2594.3647003,0.00049999,120]
[357057051,1743663081348,-2594.3647003,0.00049999,120]
[357057052,1743663081390,-2594.3647003,0.00049999,120]
[357057053,1743663081431,-2594.3647003,0.00049999,120]
[357057054,1743663081472,-2594.3647003,0.00049999,120]
[357057055,1743663081516,-2594.3647003,0.00049999,120]
[357057056,1743663081562,-2594.3647003,0.00049999,120]
[357057057,1743663081604,-2594.3647003,0.00049999,120]
[357057058,1743663081644,-2594.3647003,0.00049999,120]
[357057059,1743663081683,-2594.3647003,0.00049999,120]
[357057060,1743663081723,-2594.3647003,0.00049999,120]
[357057061,1743663081762,-2594.3647003,0.00049999,120]
[357057062,1743663081804,-2594.3647003,0.00049999,120]
[357057063,1743663081844,-2594.3647003,0.00049999,120]
[357057064,1743663081885,-2594.3647003,0.00049999,120]
[357057065,1743663081928,-2594.3647003,0.00049999,120]
[357057066,1743663081970,-2594.3647003,0.00049999,120]
[357057067,1743663082013,-2594.3647003,0.00049999,120]
[357057068,1743663082058,-2594.3647003,0.00049999,120]
[357057069,1743663082110,-250.0,0.00049999,120]
[357057070,1743663082157,-2594.3647003,0.00049999,120]
[357057071,1743663082202,-2594.3647003,0.00049999,120]
[357057072,1743663082249,-2594.3647003,0.00049999,120]
[357057073,1743663082296,-689.0861708,0.00049999,120]
[357057074,1743663082340,-689.0861708,0.00049999,120]
[357057075,1743663082383,-2594.3647003,0.00049999,120]
[357057076,1743663082428,-689.0861708,0.00049999,120]
[357057077,1743663082471,-689.0861708,0.00049999,120]
[357057078,1743663082518,-658.92955462,0.00049999,120]
[357057079,1743663082564,-658.92955462,0.00049999,120]
[357057080,1743663082610,-658.92955462,0.00049999,120]
[357057081,1743663082656,-658.92955462,0.00049999,120]
[357057082,1743663082699,-2717.90587647,0.00049999,120]
[357057083,1743663082740,-2717.90587647,0.00049999,120]
[357057084,1743663082782,-890.51135919,0.00049999,120]
[357057085,1743663082826,-744.59039672,0.00049999,120]
[357057086,1743663082867,-2717.90587646,0.00049999,120]
[357057087,1743663082912,-50000.0,0.0005,50]
[357057088,1743663082956,-1000000.0,0.0005,120]
[357057089,1743663083000,-952808.82346554,0.0005,120]
[357057090,1743663089376,-500.0,0.000448,120]
[357057091,1743663089416,-500.0,0.000448,120]
[357057092,1743663089456,-500.0,0.000448,120]
[357057093,1743663089496,-500.0,0.000448,120]
[357057094,1743663089535,-500.0,0.000448,120]
[357057095,1743663089574,-500.0,0.000448,120]
[357057096,1743663089619,-150.0,0.00049608,30]
[357057097,1743663089659,-300.0,0.00049999,120]
[357057098,1743663089696,-300.0,0.00049999,120]
[357057099,1743663089735,-300.0,0.00049999,120]
[357057100,1743663089773,-300.0,0.00049999,120]
[357057101,1743663089815,-47191.17653446,0.0005,120]
[357057102,1743663089855,-1000000.0,0.0005,120]
[357057103,1743663089895,-1000.0,0.0005,120]
[357057104,1743663089935,-633.8540125,0.0005,120]
[357057105,1743663089974,-779.8014268,0.0005,120]
[357057106,1743663090015,-1527.40977113,0.0005,120]
[357057107,1743663090059,-200.0,0.0005,120]
[357057108,1743663090104,-1000000.0,0.0005,120]
[357057109,1743663090149,-1000000.0,0.0005,120]
[357057110,1743663090193,-1000000.0,0.0005,120]
[357057111,1743663090238,-944317.75825511,0.0005,120]
[357057112,1743663093359,-500.0,0.000448,120]
[357057113,1743663093402,-500.0,0.000448,120]
[357057114,1743663093447,-500.0,0.000448,120]
[357057115,1743663093490,-500.0,0.000448,120]
[357057116,1743663093531,-500.0,0.000448,120]
[357057117,1743663093573,-500.0,0.000448,120]
[357057118,1743663093612,-500.0,0.000448,120]
[357057119,1743663093654,-500.0,0.000448,120]
[357057120,1743663093694,-840.78428833,0.000448,120]
[357057121,1743663093747,-55682.24174489,0.0005,120]
[357057122,1743663093788,-215.01,0.0005,120]
[357057123,1743663093830,-610.1337817,0.0005,120]
[357057124,1743663093871,-928.54981899,0.0005,120]
[357057125,1743663093915,-276.85954275,0.0005,120]
[357057126,1743663093958,-3142.43761575,0.0005,120]
[357057127,1743663094000,-327.4457044,0.0005,30]
[357057128,1743663094045,-24567.90925499,0.0005,30]
[357057129,1743663094087,-1000.0,0.0005,120]
[357057130,1743663094130,-2800.0,0.0005,120]
[357057131,1743663094173,-1000000.0,0.0005,120]
[357057132,1743663094226,-1000000.0,0.0005,120]
[357057133,1743663094272,-1000000.0,0.0005,120]
[357057134,1743663094318,-1000000.0,0.0005,120]
[357057135,1743663094361,-1390.03842071,0.0005,120]
[357057136,1743663094403,-169.0,0.0005,120]
[357057137,1743663094444,-600.0,0.0005,120]
[357057138,1743663094485,-211.0,0.0005,120]
[357057139,1743663094527,-2695.94,0.0005,120]
[357057140,1743663094565,-500.0,0.0005,51]
[357057141,1743663094604,-152.658805,0.0005,120]
[357057142,1743663094643,-738.1201259,0.0005,30]
[357057143,1743663094679,-5000.0,0.0005,120]
[357057144,1743663094718,-3245.0,0.0005,120]
[357057145,1743663094755,-323.10616794,0.0005,120]
[357057146,1743663094792,-500.0,0.0005,90]
[357057147,1743663094831,-269.36124885,0.0005,120]
[357057148,1743663094868,-49590.74,0.0005,60]
[357057149,1743663094910,-201.92796628,0.0005,30]
[357057150,1743663094950,-250.0,0.0005,120]
[357057151,1743663094992,-250.0,0.0005,120]
[357057152,1743663095033,-250.0,0.0005,120]
[357057153,1743663095072,-250.0,0.0005,120]
[357057154,1743663095113,-250.0,0.0005,120]
[357057155,1743663095152,-250.0,0.0005,120]
[357057156,1743663095191,-250.0,0.0005,120]
[357057157,1743663095230,-260.1,0.0005,120]
[357057158,1743663095270,-1654.870119,0.0005,120]
[357057159,1743663095308,-150.0,0.0005,30]
[357057160,1743663095346,-500.0,0.00050002,60]
[357057161,1743663095385,-500.0,0.00050383,60]
[357057162,1743663095423,-2610.81806223,0.000505,120]
[357057163,1743663095464,-832595.94733229,0.000505,120]
[357057164,1743663098431,-167404.05266771,0.000505,120]
[357057165,1743663098475,-1000000.0,0.000505,120]
[357057166,1743663098517,-1000000.0,0.000505,120]
[357057167,1743663098697,-1000000.0,0.000505,120]
[357057168,1743663098743,-153.97,0.000505,48]
[357057169,1743663098791,-153.97,0.000505,48]
[357057170,1743663098840,-153.97,0.000505,48]
[357057171,1743663098888,-153.97,0.000505,48]
[357057172,1743663098938,-153.97,0.000505,48]
[357057173,1743663098988,-153.97,0.000505,48]
[357057174,1743663099038,-153.97,0.000505,48]
[357057175,1743663099088,-153.97,0.000505,48]
[357057176,1743663099140,-153.97,0.000505,48]
[357057177,1743663099189,-153.97,0.000505,48]
[357057178,1743663099239,-153.97,0.000505,48]
[357057179,1743663099289,-153.97,0.000505,48]
[357057180,1743663099338,-153.97,0.000505,48]
[357057181,1743663099382,-153.97,0.000505,48]
[357057182,1743663099427,-153.97,0.000505,48]
[357057183,1743663099470,-153.97,0.000505,48]
[357057184,1743663099516,-153.97,0.000505,48]
[357057185,1743663099559,-153.97,0.000505,48]
[357057186,1743663099598,-150.0,0.000505,120]
[357057187,1743663099636,-150.0,0.00050613,120]
[357057188,1743663099672,-183.174922,0.00050793,30]
[357057189,1743663099709,-183.52172873,0.000508,120]
[357057190,1743663099745,-365.12663997,0.000509,120]
[357057191,1743663099782,-1066.0,0.00050917,30]
[357057192,1743663099823,-50000.0,0.00051,51]
[357057193,1743663099860,-243.78556071,0.00051,120]
[357057194,1743663099901,-500.0,0.00051,52]
[357057195,1743663099940,-606.8854166,0.00051,120]
[357057196,1743663099983,-1000000.0,0.00051,120]
[357057197,1743663100026,-776375.99306428,0.00051,120]
[357057204,1743663111837,-155.83,0.00032932,120]
[357057205,1743663111887,-155.83,0.00041142,120]
[357057206,1743663111930,-412.9,0.00041552,30]
[357057207,1743663111980,-155.83,0.00049352,120]
[357057208,1743663112025,-223624.00693572,0.00051,120]
[357057209,1743663112068,-1000000.0,0.00051,120]
[357057210,1743663112111,-500.0,0.00051,120]
[357057211,1743663112156,-6281.02,0.00051,120]
[357057212,1743663112199,-1000000.0,0.00051,120]
[357057213,1743663112245,-1000000.0,0.00051,120]
[357057214,1743663112287,-1000000.0,0.00051,120]
[357057215,1743663112330,-418.05444374,0.00051,120]
[357057216,1743663112370,-1000.0,0.00051,120]
[357057217,1743663112411,-99831.63,0.00051,120]
[357057218,1743663112451,-150.0,0.00051,51]
[357057219,1743663112488,-150.0,0.00051,30]
[357057220,1743663112528,-500.0,0.00051232,60]
[357057221,1743663112568,-666664.89862054,0.000515,120]
[357057222,1743663115836,-333335.10137946,0.000515,120]
[357057223,1743663115881,-201.92796628,0.000515,30]
[357057224,1743663115931,-150.0,0.000515,120]
[357057225,1743663115977,-150.0,0.000515,30]
[357057226,1743663116023,-150.0,0.0005155,120]
[357057227,1743663116070,-500.0,0.00051585,60]
[357057228,1743663116114,-500.0,0.00051779,60]
[357057229,1743663116158,-215.75024053,0.00051917,30]
[357057230,1743663116199,-150.0,0.00051917,30]
[357057231,1743663116238,-175.82639362,0.00051917,30]
[357057232,1743663116277,-164.47288605,0.00051917,30]
[357057233,1743663116319,-500.0,0.00051945,60]
[357057234,1743663116358,-1000.0,0.00051999,120]
[357057235,1743663116402,-50000.0,0.00052,52]
[357057236,1743663116444,-1000000.0,0.00052,120]
[357057237,1743663116484,-1000000.0,0.00052,120]
[357057238,1743663116532,-1000000.0,0.00052,120]
[357057239,1743663116579,-1000000.0,0.00052,120]
[357057240,1743663116622,-612806.92113406,0.00052,120]
[357057241,1743663132698,-24795.37,0.00043,60]
[357057242,1743663132743,-24795.37,0.000454,60]
[357057243,1743663132788,-24795.37,0.00048,60]
[357057244,1743663132836,-387193.07886594,0.00052,120]
[357057245,1743663132878,-587.00637112,0.00052,30]
[357057246,1743663132922,-500.99271867,0.00052,120]
[357057247,1743663132969,-1000000.0,0.00052,120]
[357057248,1743663133012,-626.20036899,0.00052,30]
[357057249,1743663133055,-3330.97115817,0.00052,30]
[357057250,1743663133096,-500.0,0.00052,53]
[357057251,1743663133138,-1000.0,0.00052,120]
[357057252,1743663133188,-508.06770538,0.00052,30]
[357057253,1743663133235,-13800.0,0.00052,120]
[357057254,1743663133279,-480.0,0.00052,100]
[357057255,1743663133319,-150.0,0.00052,52]
[357057256,1743663133360,-150.0,0.00052,30]
[357057257,1743663133400,-183.174922,0.00052031,30]
[357057258,1743663133441,-500.0,0.00052371,60]
[357057259,1743663133480,-156.03,0.00052375,120]
[357057260,1743663133520,-156.031,0.00052375,120]
[357057261,1743663133560,-156.031,0.00052375,120]
[357057262,1743663133601,-156.031,0.00052375,120]
[357057263,1743663133640,-156.031,0.00052375,120]
[357057264,1743663133681,-151.0,0.00052438,120]
[357057265,1743663133721,-1500.0,0.0005244,30]
[357057266,1743663133761,-500.0,0.00052466,60]
[357057267,1743663133800,-150.0,0.00052488,120]
[357057268,1743663133842,-1000000.0,0.000525,120]
[357057269,1743663133882,-1000000.0,0.000525,120]
[357057270,1743663133925,-500.0,0.00052526,60]
[357057271,1743663133964,-5021.51292876,0.0005268,30]
[357057272,1743663134007,-500.0,0.00052781,60]
[357057273,1743663134046,-907.69346973,0.000528,120]
[357057274,1743663134088,-892159.74944891,0.000528,120]
[357057275,1743663134129,-500.0,0.00052887,60]
[357057276,1743663134177,-153.97,0.000529,51]
[357057277,1743663134225,-153.97,0.000529,51]
[357057278,1743663134279,-153.97,0.000529,51]
[357057279,1743663134326,-153.97,0.000529,51]
[357057280,1743663134373,-153.97,0.000529,51]
[357057281,1743663134420,-153.97,0.000529,51]
[357057282,1743663134466,-153.97,0.000529,51]
[357057283,1743663134510,-153.97,0.000529,51]
[357057284,1743663134558,-153.97,0.000529,51]
[357057285,1743663134603,-153.97,0.000529,51]
[357057286,1743663134648,-153.97,0.000529,51]
[357057287,1743663134695,-153.97,0.000529,51]
[357057288,1743663134740,-153.97,0.000529,51]
[357057289,1743663134787,-153.97,0.000529,51]
[357057290,1743663134831,-153.97,0.000529,51]
[357057291,1743663134878,-153.97,0.000529,51]
[357057292,1743663134924,-153.97,0.000529,51]
[357057293,1743663134976,-153.97,0.000529,51]
[357057294,1743663135019,-210.71299913,0.0005299,120]
[357057295,1743663135065,-50000.0,0.00053,53]
[357057296,1743663135107,-560452.1150432,0.00053,120]
[357057297,1743663138769,-24795.37,0.000517,60]
[357057298,1743663138820,-150.0,0.0005268,30]
[357057299,1743663138865,-439547.8849568,0.00053,120]
[357057300,1743663138909,-1117.15,0.00053,30]
[357057301,1743663138952,-1888.46,0.00053,30]
[357057302,1743663138999,-500.0,0.00053,54]
[357057303,1743663139042,-1000.0,0.00053,120]
[357057304,1743663139086,-575.99,0.00053,30]
[357057305,1743663139129,-968.4,0.00053,30]
[357057306,1743663139190,-153.932,0.00053,30]
[357057307,1743663139247,-1000.0,0.00053245,60]
[357057308,1743663139307,-1000.0,0.00053245,60]
[357057309,1743663139361,-1000.0,0.00053245,60]
[357057310,1743663139416,-1000.0,0.00053245,60]
[357057311,1743663139470,-1000.0,0.00053245,60]
[357057312,1743663139529,-1000.0,0.00053245,60]
[357057313,1743663139586,-1000.0,0.00053245,60]
[357057314,1743663139635,-1000.0,0.00053245,60]
[357057315,1743663139686,-1000.0,0.00053245,60]
[357057316,1743663139739,-1000.0,0.00053245,60]
[357057317,1743663139787,-1000.0,0.00053245,60]
[357057318,1743663139840,-1000.0,0.00053245,60]
[357057319,1743663139890,-1000.0,0.00053245,60]
[357057320,1743663139940,-1000.0,0.00053245,60]
[357057321,1743663139990,-1000.0,0.00053245,60]
[357057322,1743663140038,-1000.0,0.00053245,60]
[357057323,1743663140090,-1000.0,0.00053245,60]
[357057324,1743663140140,-1000.0,0.00053245,60]
[357057325,1743663140191,-1000.0,0.00053245,60]
[357057326,1743663140242,-440.08,0.00053245,60]
[357057327,1743663140291,-500.0,0.00053256,60]
[357057328,1743663140339,-204.0,0.000534,120]
[357057329,1743663140386,-150.0,0.00053425,120]
[357057330,1743663140434,-1066.0,0.00053462,30]
[357057331,1743663140483,-1000000.0,0.000535,120]
[357057332,1743663140532,-503485.8266692,0.000538,30]
[357057333,1743663140579,-212.63,0.000538,120]
[357057334,1743663140628,-9263.06272285,0.0005398,120]
[357057335,1743663140677,-500.0,0.00053985,60]
[357057336,1743663140723,-150.97805281,0.00053999,30]
[357057337,1743663140775,-50000.0,0.00054,54]
[357057338,1743663140816,-1000000.0,0.00054,120]
[357057339,1743663140856,-651849.98979052,0.00054,30]
[357057340,1743663140895,-1118.02,0.00054,120]
[357057341,1743663140936,-513.65936491,0.00054,120]
[357057342,1743663140974,-1360.89222206,0.00054,120]
[357057343,1743663141018,-1000000.0,0.00054,120]
[357057344,1743663141058,-162.09782528,0.00054,90]
[357057345,1743663141099,-500.0,0.00054,55]
[357057346,1743663141397,-288825.57639557,0.00054,120]
[357057347,1743663144762,-500.0,0.00052519,60]
[357057348,1743663144802,-150.0,0.000535,120]
[357057349,1743663144846,-236.18594782,0.000537,120]
[357057350,1743663144888,-711174.42360443,0.00054,120]
[357057351,1743663144929,-13800.0,0.00054,120]
[357057352,1743663144973,-168.52,0.00054,120]
[357057353,1743663145014,-24795.37,0.00054,60]
[357057354,1743663145057,-500.0,0.00054089,60]
[357057355,1743663145097,-500.0,0.00054215,60]
[357057356,1743663145140,-500.0,0.00054246,60]
[357057357,1743663145180,-150.0,0.0005425,39]
[357057358,1743663145221,-255202.0,0.0005444,30]
[357057359,1743663145264,-300000.0,0.0005444,30]
[357057360,1743663145307,-1000000.0,0.000545,120]
[357057361,1743663145349,-217.96506408,0.0005477,120]
[357057362,1743663145388,-533.87053116,0.00054794,30]
[357057363,1743663145429,-1000.0,0.00054794,120]
[357057364,1743663145470,-397.36948553,0.00054794,120]
[357057365,1743663145512,-2349.704108,0.00054794,120]
[357057366,1743663145552,-174.479863,0.00054794,120]
[357057367,1743663145593,-164.191051,0.00054794,120]
[357057368,1743663145633,-2511.462208,0.00054794,120]
[357057369,1743663145675,-173.462922,0.00054794,120]
[357057370,1743663145717,-227.942867,0.00054794,120]
[357057371,1743663145758,-510.42375204,0.00054794,120]
[357057372,1743663145798,-504.70915606,0.00054794,120]
[357057373,1743663145840,-613.18183622,0.00054794,120]
[357057374,1743663145882,-502.12050389,0.00054794,120]
[357057375,1743663145924,-503.9473412,0.00054794,120]
[357057376,1743663145967,-502.69466676,0.00054794,120]
[357057377,1743663146009,-500.0,0.00054794,120]
[357057378,1743663146053,-500.0,0.00054794,120]
[357057379,1743663146094,-500.0,0.00054794,120]
[357057380,1743663146139,-500.0,0.00054794,120]
[357057381,1743663146183,-523.94739834,0.00054794,120]
[357057382,1743663146225,-503.71013569,0.00054794,120]
[357057383,1743663146270,-500.0,0.00054794,120]
[357057384,1743663146313,-500.0,0.00054794,120]
[357057385,1743663146358,-510.84887958,0.00054794,120]
[357057386,1743663146400,-500.0,0.00054794,120]
[357057387,1743663146442,-500.0,0.00054794,120]
[357057388,1743663146486,-500.0,0.00054794,120]
[357057389,1743663146527,-500.0,0.00054794,120]
[357057390,1743663146571,-360.00964016,0.00054794,120]
[357057391,1743663146612,-500.0,0.00054794,120]
[357057392,1743663146654,-500.0,0.00054794,120]
[357057393,1743663146696,-500.0,0.00054794,120]
[357057394,1743663146739,-500.0,0.00054794,120]
[357057395,1743663146779,-500.0,0.00054794,120]
[357057396,1743663146826,-500.0,0.00054794,120]
[357057397,1743663146865,-500.0,0.00054794,120]
[357057398,1743663146906,-500.0,0.00054794,120]
[357057399,1743663146946,-500.0,0.00054794,120]
[357057400,1743663146987,-500.0,0.00054794,120]
[357057401,1743663147029,-500.0,0.00054794,120]
[357057402,1743663147070,-500.0,0.00054794,120]
[357057403,1743663147112,-500.0,0.00054794,120]
[357057404,1743663147155,-500.0,0.00054794,120]
[357057405,1743663147202,-500.0,0.00054794,120]
[357057406,1743663147244,-500.0,0.00054794,120]
[357057407,1743663147284,-500.0,0.00054794,120]
[357057408,1743663147322,-500.0,0.00054794,120]
[357057409,1743663147364,-500.0,0.00054794,120]
[357057410,1743663147405,-500.0,0.00054794,120]
[357057411,1743663147617,-500.81304053,0.00054794,120]
[357057412,1743663147659,-500.0,0.00054794,120]
[357057413,1743663147700,-500.0,0.00054794,120]
[357057414,1743663147741,-426.56851074,0.00054794,120]
[357057415,1743663147779,-500.0,0.00054794,120]
[357057416,1743663147819,-500.0,0.00054794,120]
[357057417,1743663147859,-500.0,0.00054794,120]
[357057418,1743663147899,-500.0,0.00054794,120]
[357057419,1743663147940,-500.0,0.00054794,120]
[357057420,1743663147982,-500.0,0.00054794,120]
[357057421,1743663148021,-500.0,0.00054794,120]
[357057422,1743663148061,-500.0,0.00054794,120]
[357057423,1743663148103,-500.0,0.00054794,120]
[357057424,1743663148143,-500.0,0.00054794,120]
[357057425,1743663148184,-500.0,0.00054794,120]
[357057426,1743663148224,-502.77585144,0.00054794,120]
[357057427,1743663148270,-500.0,0.00054794,120]
[357057428,1743663148311,-500.0,0.00054794,120]
[357057429,1743663148353,-500.0,0.00054794,120]
[357057430,1743663148395,-500.0,0.00054794,120]
[357057431,1743663148436,-500.0,0.00054794,120]
[357057432,1743663148478,-501.69366211,0.00054794,120]
[357057433,1743663148520,-636.52291094,0.00054794,120]
[357057434,1743663148562,-500.0,0.00054794,120]
[357057435,1743663148602,-666.57,0.00054794,120]
[357057436,1743663148644,-500.0,0.00054794,120]
[357057437,1743663148683,-500.0,0.00054794,120]
[357057438,1743663148724,-500.0,0.00054794,120]
[357057439,1743663148764,-500.0,0.00054794,120]
[357057440,1743663148807,-534.10794908,0.00054794,120]
[357057441,1743663148850,-510.1178126,0.00054794,120]
[357057442,1743663148892,-500.0,0.00054794,120]
[357057443,1743663148934,-500.0,0.00054794,120]
[357057444,1743663148976,-500.0,0.00054794,120]
[357057445,1743663149019,-500.0,0.00054794,120]
[357057446,1743663149063,-500.0,0.00054794,120]
[357057447,1743663149108,-1000.0,0.00054794,120]
[357057448,1743663149151,-504.83798929,0.00054794,120]
[357057449,1743663149198,-500.0,0.00054794,120]
[357057450,1743663149244,-500.0,0.00054794,120]
[357057451,1743663149286,-507.58536542,0.00054794,120]
[357057452,1743663149326,-509.1800415,0.00054794,120]
[357057453,1743663149368,-523.96512925,0.00054794,120]
[357057454,1743663149409,-502.56525941,0.00054794,120]
[357057455,1743663149451,-504.70205312,0.00054794,120]
[357057456,1743663149490,-500.0,0.00054794,120]
[357057457,1743663149530,-504.21328676,0.00054794,120]
[357057458,1743663149570,-528.1668519,0.00054794,120]
[357057459,1743663149609,-507.7932141,0.00054794,120]
[357057460,1743663149648,-510.3080225,0.00054794,120]
[357057461,1743663149688,-500.0,0.00054794,120]
[357057462,1743663149729,-500.0,0.00054794,120]
[357057463,1743663149771,-500.0,0.00054794,120]
[357057464,1743663149811,-500.0,0.00054794,120]
[357057465,1743663149852,-500.0,0.00054794,120]
[357057466,1743663149894,-500.0,0.00054794,120]
[357057467,1743663149938,-500.0,0.00054794,120]
[357057468,1743663149980,-500.0,0.00054794,120]
[357057469,1743663150024,-500.0,0.00054794,120]
[357057470,1743663150067,-500.0,0.00054794,120]
[357057471,1743663150110,-500.0,0.00054794,120]
[357057472,1743663150154,-500.0,0.00054794,120]
[357057473,1743663150195,-500.0,0.00054794,120]
[357057474,1743663150239,-500.0,0.00054794,120]
[357057475,1743663150282,-515.96345265,0.00054794,120]
[357057476,1743663150325,-500.0,0.00054794,120]
[357057477,1743663150366,-500.0,0.00054794,120]
[357057478,1743663150409,-500.0,0.00054794,120]
[357057479,1743663150450,-500.0,0.00054794,120]
[357057480,1743663150494,-500.0,0.00054794,120]
[357057481,1743663150535,-522.6758149,0.00054794,120]
[357057482,1743663150578,-500.0,0.00054794,120]
[357057483,1743663150618,-500.0,0.00054794,120]
[357057484,1743663150661,-513.78571323,0.00054794,120]
[357057485,1743663150702,-500.0,0.00054794,120]
[357057486,1743663150743,-500.0,0.00054794,120]
[357057487,1743663150783,-500.0,0.00054794,120]
[357057488,1743663150825,-599.47084276,0.00054794,90]
[357057489,1743663150865,-500.0,0.00054794,120]
[357057490,1743663150908,-500.0,0.00054794,120]